Cogmind - Beta 10.1 @@@ ROGUE MODE // 2020.09.23 @ 21:12:00 Player: Turbografx16 Result: Self-destructed Performance ------------- Evolutions (2) 1000 Regions Visited (7) 1400 Robots Destroyed (44) 220 Value Destroyed (564) 564 Prototype IDs (0) 0 Alien Tech Used (0) 0 Bonus (0) 0 TOTAL SCORE: 3184 Bonus ------- None Cogmind --------- Core Integrity 550/550 Matter 213/300 Energy 214/250 System Corruption 0% Temperature Cool (0) Movement Treading (160) Location -8/Materials Parts ------- > --- POWER (1) -------- Ion Engine > --- PROPULSION (3) --- Light Treads Improved Treads > --- UTILITY (5) ------ Large Storage Unit Light Armor Plating Hardlight Generator > --- WEAPON (2) ------- Assault Cannon Bore Cannon > --- INVENTORY (10) --- Ion Engine Medium Storage Unit High-capacity Storage Unit EM Pulse Cannon Heavy Assault Rifle Autogun Grenade Launcher Axe Peak State ------------ > --- POWER ------------ Ion Engine > --- PROPULSION ------- Light Treads Improved Treads > --- UTILITY ---------- Large Storage Unit Improved Terrain Scanner Advanced Targeting Computer Hacking Suite > --- WEAPON ----------- Bore Cannon Axe > --- INVENTORY -------- Light Ion Engine Improved Aluminum Leg Improved Aluminum Leg Medium Storage Unit High-capacity Storage Unit Light Armor Plating EM Pulse Cannon Heavy Assault Rifle Assault Cannon Grenade Launcher [Rating: 22] Favorites ----------- Power Ion Engine Engine Ion Engine Propulsion Light Treads Treads Light Treads Leg Aluminum Leg Utility Large Storage Unit Device Terrain Scanner Storage Large Storage Unit Processor Advanced Targeting Computer Hackware Hacking Suite Protection Light Armor Plating Weapon Assault Cannon Energy Gun Medium Laser Ballistic Gun Light Assault Rifle Ballistic Cannon Assault Cannon Launcher Grenade Launcher Slashing Weapon Axe Build | -11 -10 -10 -9 -9 -9 -8 -8 ------- Run | Scr Mat Min Mat Min Exi Min Mat Slots Evolved 4 | . . . 2 . . . 2 Power . | . . . . . . . . Propulsion 1 | . . . . . . . 1 Utility 3 | . . . 2 . . . 1 Weapon . | . . . . . . . . Parts Attached 35 | 2 4 8 12 7 . 1 1 Power 2 | 1 . . 1 . . . . Engine 2 | 1 . . 1 . . . . Core . | . . . . . . . . Reactor . | . . . . . . . . Propulsion 4 | . 2 . 2 . . . . Treads 4 | . 2 . 2 . . . . Leg . | . . . . . . . . Wheel . | . . . . . . . . Hover . | . . . . . . . . Flight . | . . . . . . . . Utility 9 | . 2 2 3 1 . . 1 Device 3 | . . . 2 . . . 1 Storage 2 | . 2 . . . . . . Processor 2 | . . 2 . . . . . Hackware 1 | . . . 1 . . . . Protection 1 | . . . . 1 . . . Artifact . | . . . . . . . . Weapon 20 | 1 . 6 6 6 . 1 . Energy Gun 1 | . . 1 . . . . . Energy Cannon . | . . . . . . . . Ballistic Gun 2 | 1 . 1 . . . . . Ballistic Cannon 7 | . . 2 3 1 . 1 . Launcher 7 | . . 2 1 4 . . . Special Weapon . | . . . . . . . . Impact Weapon . | . . . . . . . . Slashing Weapon 3 | . . . 2 1 . . . Piercing Weapon . | . . . . . . . . Special Melee Weapon . | . . . . . . . . Unidentified Prototypes . | . . . . . . . . Parts Lost 8 | . . 3 1 4 . . . Power . | . . . . . . . . Propulsion 1 | . . . 1 . . . . Utility 3 | . . . . 3 . . . Weapon 4 | . . 3 . 1 . . . Highest Loss Streak 3 | . . 1 1 3 . . . Average Slot Usage (%) 90 | . 95 97 99 72 77 77 67 Engine 11 | . 14 14 10 11 11 11 9 Treads 22 | . 16 28 21 22 22 22 18 Leg 1 | . 11 . . . . . . Device 4 | . . . 11 1 . . 4 Storage 13 | . 23 18 11 11 11 11 9 Processor 6 | . . 9 11 . . . . Hackware 4 | . . . 11 . . . . Protection 2 | . . . . 3 11 11 9 Ballistic Gun 4 | . 28 6 . . . . . Ballistic Cannon 11 | . . 6 20 4 11 22 18 Launcher 4 | . . 8 . 11 11 . . Slashing Weapon 1 | . . . . 6 . . . Naked Turns . | . . . . . . . . Heaviest Build 43 | 12 32 35 36 36 32 38 43 Greatest Support 43 | 20 40 40 43 43 43 43 43 Greatest Overweight (x) 1 | . 1 . 1 . . . . Average Overweight (x) . | . . . . . . . . Largest Inventory Capacity 14 | 6 14 14 10 10 10 10 10 Average Capacity 10 | 6 11 11 10 10 10 10 10 Most Carried 10 | 6 7 10 10 9 8 8 8 Average Carried 7 | 4 5 6 8 8 8 8 8 Final Capacity 14 | 6 14 10 10 10 10 10 10 Final Carried 10 | 4 7 10 9 8 8 8 8 Class Distribution -------------------- 100% | Mutant Dominant Class ---------------- Mutant | -10/Materials Mutant | -10/Mines Mutant | -9/Materials Mutant | -9/Mines Mutant | -9/Exiles Mutant | -8/Mines Mutant | -8/Materials Resources | -11 -10 -10 -9 -9 -9 -8 -8 ----------- Run | Scr Mat Min Mat Min Exi Min Mat Matter Collected 1005 | 184 136 138 136 385 . 26 . Remotely . | . . . . . . . . Salvage Created 562 | . 176 142 83 109 . 52 . Parts 53 | . 12 17 13 7 . 4 . Haulers Intercepted . | . . . . . . . . Recyclers Shooed 1 | . . . . 1 . . . Parts Field Recycled . | . . . . . . . . Retrieved Matter . | . . . . . . . . Parts Self-Destructed . | . . . . . . . . Prevented . | . . . . . . . . Kills | -11 -10 -10 -9 -9 -9 -8 -8 ------- Run | Scr Mat Min Mat Min Exi Min Mat Combat Hostiles Destroyed 39 | . 6 10 6 16 . 1 . Melee 2 | . . . . 2 . . . Guns 8 | . 6 2 . . . . . Cannons 4 | . . 1 2 . . 1 . AOE 25 | . . 7 4 14 . . . Classes Destroyed 9 | . 2 1 1 4 . 1 . Worker 1 | . . . . 1 . . . Builder 3 | . . 1 1 . . 1 . Tunneler 1 | . . . . 1 . . . Swarmer 16 | . 3 8 4 1 . . . Grunt 5 | . 3 2 . . . . . Sentry 2 | . . . 2 . . . . Demolisher 1 | . . . . 1 . . . Hunter 1 | . . . . . . 1 . Assembled 14 | . . . . 14 . . . Best Kill Streak 16 | . 5 6 4 16 . 2 . Combat Bots Only 15 | . 5 6 4 15 . 1 . Max Kills in Single Turn 5 | . 1 2 3 5 . 1 . Gunslinging . | . . . . . . . . Exploded 5 | . . 2 3 5 . . . Melee 1 | . . . . 1 . . . Uniques/NPCs Destroyed . | . . . . . . . . Combat | -11 -10 -10 -9 -9 -9 -8 -8 -------- Run | Scr Mat Min Mat Min Exi Min Mat Damage Taken 1247 | . 183 437 176 275 . 176 . Core 148 | . 30 36 29 39 . 14 . Absorbed by Shields . | . . . . . . . . Core Remaining (%) 84 | 100 . 73 . . . 79 . Volleys Fired 66 | . 15 27 11 8 . 5 . Largest 2 | . 2 2 2 2 . 2 . Hottest 101 | . 40 87 101 101 . 101 . Shots Fired 113 | . 30 39 22 12 . 10 . Gun 48 | . 30 18 . . . . . Cannon 49 | . . 15 20 4 . 10 . Launcher 16 | . . 6 2 8 . . . Special . | . . . . . . . . Kinetic 88 | . 30 24 20 4 . 10 . Thermal 9 | . . 9 . . . . . Explosive 16 | . . 6 2 8 . . . Electromagnetic . | . . . . . . . . Robot Hit Streak 13 | . 10 13 6 11 . 3 . Robot Miss Streak 6 | . 4 4 6 1 . 3 . Penetration Max . | . . . . . . . . Secondary Targets . | . . . . . . . . Shots Hit Robots 71 | . 21 20 14 12 . 4 . Core Hits 70 | . 9 17 7 34 . 3 . Critical Hits 9 | . . 2 3 2 . 2 . Critical Kills 4 | . . 1 . 2 . 1 . Critical Parts Destroyed 4 | . . 1 2 . . 1 . Melee Attacks 10 | . . . 3 7 . . . Impact . | . . . . . . . . Slashing 10 | . . . 3 7 . . . Piercing . | . . . . . . . . Sneak Attacks 2 | . . . . 2 . . . Combat Hostiles . | . . . . . . . . Follow-up Attacks . | . . . . . . . . Damage Inflicted 2564 | . 219 578 548 1144 . 75 . Guns 376 | . 219 157 . . . . . Cannons 532 | . . 47 329 81 . 75 . Explosions 1319 | . . 374 219 726 . . . Melee 337 | . . . . 337 . . . Ramming . | . . . . . . . . Kinetic 806 | . 219 102 329 81 . 75 . Thermal 102 | . . 102 . . . . . Explosive 1319 | . . 374 219 726 . . . Electromagnetic . | . . . . . . . . Impact . | . . . . . . . . Slashing 337 | . . . . 337 . . . Piercing . | . . . . . . . . Highest Corruption 9 | . . . 1 9 9 9 . Average Corruption 7 | . . . 1 8 9 9 . Corruption Purged . | . . . . . . . . Effects 30 | . . . 1 18 7 4 . Message Errors 10 | . . . 1 7 1 1 . Matter Fused 6 | . . . . 3 2 1 . Heat Flow Errors 1 | . . . . 1 . . . Energy Discharges 4 | . . . . 2 2 . . Data Loss (minor) 5 | . . . . 3 1 1 . Data Loss (major) 1 | . . . . . 1 . . Misfires 1 | . . . . 1 . . . Targeting Errors 2 | . . . . 1 . 1 . Overload Shots . | . . . . . . . . Overflow Damage 126 | . . 19 6 101 . . . Projectiles . | . . . . . . . . Explosions 25 | . . 19 6 . . . . Melee 101 | . . . . 101 . . . Knockbacks 3 | . . 1 1 1 . . . Impact . | . . . . . . . . Kinetic 3 | . . 1 1 1 . . . Secondary . | . . . . . . . . Self-Inflicted Damage 122 | . . 80 . 42 . . . Shots 4 | . . 2 . 2 . . . Rammed . | . . . . . . . . Targets Rammed . | . . . . . . . . Kicked . | . . . . . . . . Crushed . | . . . . . . . . Highest Temperature 168 | . 6 154 168 153 . 156 . Average Temperature 57 | . 6 52 61 55 . 83 . Received Heat Transfer 272 | . 48 132 36 20 . 36 . Siege Activations . | . . . . . . . . Robots Corrupted . | . . . . . . . . Combat Hostiles . | . . . . . . . . Parts Fried . | . . . . . . . . Impact Corruptions . | . . . . . . . . Robots Melted . | . . . . . . . . Combat Hostiles . | . . . . . . . . Parts Melted 1 | . . 1 . . . . . Heat Transferred 296 | . . 296 . . . . . Parts Sabotaged . | . . . . . . . . Parts Stolen . | . . . . . . . . Parts Stripped . | . . . . . . . . Power Chain Reactions . | . . . . . . . . Missiles Intercepted . | . . . . . . . . Alert | -11 -10 -10 -9 -9 -9 -8 -8 ------- Run | Scr Mat Min Mat Min Exi Min Mat Peak Influence 301 | . 162 301 168 30 . 39 14 Initial 63 | . . 63 39 15 . . 14 Average 57 | . 55 148 38 16 . 18 14 Maximum Alert Level 1 | . . 1 . . . . . Low Security (%) 98 | 100 100 90 100 100 . 100 100 Level 1 1 | . . 9 . . . . . Level 2 . | . . . . . . . . Level 3 . | . . . . . . . . Level 4 . | . . . . . . . . Level 5 . | . . . . . . . . High Security . | . . . . . . . . Max Security . | . . . . . . . . Squads Dispatched 6 | . 1 1 3 . . . 1 Investigation 2 | . . 1 1 . . . . Extermination . | . . . . . . . . Reinforcement 4 | . 1 . 2 . . . 1 Assault . | . . . . . . . . Garrison . | . . . . . . . . Intercept . | . . . . . . . . Construction Impeded . | . . . . . . . . Haulers Reinforced . | . . . . . . . . Stealth | -11 -10 -10 -9 -9 -9 -8 -8 --------- Run | Scr Mat Min Mat Min Exi Min Mat Distress Signals 3 | . 2 . 1 . . . . Communications Jammed . | . . . . . . . . Distress Signals . | . . . . . . . . Times Spotted 54 | . 10 12 10 17 . 4 1 Peak Tracking Total 15 | . 5 4 4 15 . 3 1 Tactical Retreats 2 | . . . . 2 . . . Traps | -11 -10 -10 -9 -9 -9 -8 -8 ------- Run | Scr Mat Min Mat Min Exi Min Mat Traps Triggered 2 | . . . 2 . . . . Indirectly . | . . . . . . . . Trap Hack Attempts . | . . . . . . . . Triggered . | . . . . . . . . Disarmed . | . . . . . . . . Reprogrammed . | . . . . . . . . Reused . | . . . . . . . . Traps Extracted . | . . . . . . . . Installed . | . . . . . . . . Triggered . | . . . . . . . . Machines | -11 -10 -10 -9 -9 -9 -8 -8 ---------- Run | Scr Mat Min Mat Min Exi Min Mat Machines Disabled . | . . . . . . . . Max in Single Turn . | . . . . . . . . Machines Sabotaged . | . . . . . . . . Garrisons Compromised . | . . . . . . . . Overloaded Fab Kills . | . . . . . . . . Fab Network Shutdowns . | . . . . . . . . Hacking | -11 -10 -10 -9 -9 -9 -8 -8 --------- Run | Scr Mat Min Mat Min Exi Min Mat Machines Accessed 14 | . 5 2 6 . . . 1 Terminals 10 | . 5 1 3 . . . 1 Fabricators . | . . . . . . . . Repair Stations 1 | . . . 1 . . . . Recycling Units 1 | . . . 1 . . . . Scanalyzers 1 | . . . 1 . . . . Garrison Access . | . . . . . . . . Total Hacks 34 | . 13 4 16 . . . 1 Successful 21 | . 5 3 13 . . . . Failed 13 | . 8 1 3 . . . 1 Catastrophic 3 | . 1 . 1 . . . 1 Database Lockouts . | . . . . . . . . Manual 25 | . 13 3 6 . 1 . 2 Terminals 24 | . 13 3 7 . . . 1 Fabricators . | . . . . . . . . Repair Stations 5 | . . . 5 . . . . Recycling Units 1 | . . . 1 . . . . Scanalyzers 3 | . . . 3 . . . . Garrison Access . | . . . . . . . . Terminal Hacks 5 | . 1 2 2 . . . . Open Door 1 | . . 1 . . . . . Branch Access Points 3 | . 1 1 1 . . . . Alert Level 1 | . . . 1 . . . . Fabricator Hacks . | . . . . . . . . Repair Station Hacks 4 | . . . 4 . . . . Scan Component 2 | . . . 2 . . . . Repair 2 | . . . 2 . . . . Recycling Unit Hacks 1 | . . . 1 . . . . Report Inventory 1 | . . . 1 . . . . Scanalyzer 3 | . . . 3 . . . . Insert Component 1 | . . . 1 . . . . Analyze 2 | . . . 2 . . . . Garrison Access Hacks . | . . . . . . . . Unauthorized Hacks 8 | . 4 1 3 . . . . Terminals 8 | . 4 1 3 . . . . Botnet 8 | . 4 1 3 . . . . Fabricators . | . . . . . . . . Repair Stations . | . . . . . . . . Recycling Units . | . . . . . . . . Scanalyzers . | . . . . . . . . Garrison Access . | . . . . . . . . Data Cores Recovered . | . . . . . . . . Used . | . . . . . . . . Hacking Detections 9 | . 4 1 3 . . . 1 Full Trace Events 1 | . . . . . . . 1 Feedback Events . | . . . . . . . . Feedback Blocked . | . . . . . . . . Robot Schematics Acquired . | . . . . . . . . Robots Built . | . . . . . . . . Matter . | . . . . . . . . Time . | . . . . . . . . Total Robot Build Rating . | . . . . . . . . Part Schematics Acquired 1 | . . . 1 . . . . Parts Built . | . . . . . . . . Matter . | . . . . . . . . Time . | . . . . . . . . Total Part Build Rating . | . . . . . . . . Parts Repaired 2 | . . . 2 . . . . Time 52 | . . . 52 . . . . Parts Recycled . | . . . . . . . . Recycled Matter . | . . . . . . . . Retrieved Matter . | . . . . . . . . Retrieved Components . | . . . . . . . . Parts Scanalyzed 1 | . . . 1 . . . . Part Schematics Acquired 1 | . . . 1 . . . . Parts Damaged . | . . . . . . . . Bothacking | -11 -10 -10 -9 -9 -9 -8 -8 ------------ Run | Scr Mat Min Mat Min Exi Min Mat Used RIF Installer . | . . . . . . . . Robots Hacked . | . . . . . . . . Non-combat . | . . . . . . . . Combat . | . . . . . . . . Robot Hacks Applied . | . . . . . . . . Relay Couplers Released . | . . . . . . . . Robots Rewired . | . . . . . . . . Allies Hacked . | . . . . . . . . Hacks Repelled . | . . . . . . . . Allies | -11 -10 -10 -9 -9 -9 -8 -8 -------- Run | Scr Mat Min Mat Min Exi Min Mat Total Allies . | . . . . . . . . Largest Group . | . . . . . . . . Highest-Rated Group . | . . . . . . . . Highest-Rated Ally . | . . . . . . . . Total Orders . | . . . . . . . . Ally Attacks . | . . . . . . . . Total Damage . | . . . . . . . . Kills . | . . . . . . . . Allies Corrupted . | . . . . . . . . Allies Melted . | . . . . . . . . Intel | -11 -10 -10 -9 -9 -9 -8 -8 ------- Run | Scr Mat Min Mat Min Exi Min Mat Robot Analysis Total . | . . . . . . . . Derelict Logs Recovered . | . . . . . . . . Drone Launches . | . . . . . . . . Drone Recoveries . | . . . . . . . . Exploration | -11 -10 -10 -9 -9 -9 -8 -8 ------------- Run | Scr Mat Min Mat Min Exi Min Mat Turns Passed 2862 | 6 358 479 1134 467 356 44 18 Spaces Moved 1466 | 2 204 232 522 256 223 17 10 Core . | . . . . . . . . Treads 1364 | . 104 232 522 256 223 17 10 Legs 102 | 2 100 . . . . . . Wheels . | . . . . . . . . Hover . | . . . . . . . . Flight . | . . . . . . . . Fastest Speed 120 | 120 120 160 160 160 160 160 160 Average Speed 157 | 120 144 160 160 160 160 160 160 Slowest Speed 180 | 120 160 160 180 160 160 160 160 Overloaded Moves . | . . . . . . . . Propulsion Burnouts . | . . . . . . . . Robots Hopped . | . . . . . . . . Cave-ins Triggered . | . . . . . . . . Exploration Rate (%) 34 | 2 40 52 47 59 60 15 3 Regions Visited 7 Branch Regions 4 Pre-discovered Areas . | . . . . . . . . Known Exits Taken 2 | . 1 . 1 . . . . Unknown Exits Taken 5 | 1 . 1 . 1 1 1 . Scrap Searched 2 | . . 1 . 1 . . . Spaces Dug 3 | . . . 3 . . . . Terrain Destroyed 164 | . . 64 20 76 . 4 . Melee 3 | . . . 3 . . . . Projectile 24 | . . 13 6 1 . 4 . AOE 137 | . . 51 11 75 . . . Terrain Rammed . | . . . . . . . . Walls Destroyed . | . . . . . . . . Machines Disabled . | . . . . . . . . Actions | -11 -10 -10 -9 -9 -9 -8 -8 --------- Run | Scr Mat Min Mat Min Exi Min Mat Total 1878 | 5 240 299 790 288 222 23 11 Wait 281 | . 14 28 230 8 . 1 . Move 1459 | 1 203 231 521 255 222 16 10 Hop . | . . . . . . . . Pick Up 17 | . 3 5 7 2 . . . Fast Attach 5 | . 1 1 2 . . . 1 Attach 6 | . . 2 2 2 . . . Detach . | . . . . . . . . Swap 24 | 2 3 5 8 5 . 1 . Drop 10 | 2 1 . 6 1 . . . Fire 66 | . 15 27 11 8 . 5 . Melee 10 | . . . 3 7 . . . Ram . | . . . . . . . . Kick . | . . . . . . . . Crush . | . . . . . . . . Escape Stasis . | . . . . . . . . Rewire . | . . . . . . . . Trap . | . . . . . . . . Miscellaneous . | . . . . . . . . Route ------- -11/Scrapyard -10/Materials (discovered 3 exits: *Mat / *Min x2) -10/Mines -9/Materials (discovered 4 exits: *Mat x2 / *Min x2) -9/Mines (discovered 2 exits: *Mat / *Exi) -9/Exiles -8/Mines -8/Materials History --------- Turn | Location | Event 5 | -11/Scrapyard | Discovered new exit (range 1) 7 | -11/Scrapyard | Entered Materials 199 | -10/Materials | Discovered new exit (range 8) 246 | -10/Materials | Discovered new exit (range 16) 265 | -10/Materials | Identified exit to Mines 312 | -10/Materials | Build established: Mutant 365 | -10/Materials | Entered Mines 631 | -10/Mines | A weapon hastily lodged in a ceiling crevice suddenly fell to the ground 784 | -10/Mines | Discovered new exit (range 14) 798 | -10/Mines | Met a Derelict shopkeep closing up shop 844 | -10/Mines | Entered Materials 844 | -9/Materials | Evolved 2 slots: Utility x2 1143 | -9/Materials | Discovered new exit (range 12) 1339 | -9/Materials | Repaired Grenade Launcher? 1377 | -9/Materials | Repaired Ion Engine 1681 | -9/Materials | Identified exit to Mines 1732 | -9/Materials | Discovered new exit (range 4) 1978 | -9/Materials | Entered Mines 1979 | -9/Mines | Assembled infested the area 2022 | -9/Mines | Discovered new exit (range 11) 2061 | -9/Mines | Destroyed 15 combat bots 2068 | -9/Mines | Lost 3 parts (3u) 2438 | -9/Mines | Deemed a non-threat by the Exiles lab entrance 2438 | -9/Mines | Discovered new exit (range 5) 2445 | -9/Mines | Entered Exiles 2487 | -9/Exiles | Met 8R-AWN 2511 | -9/Exiles | Met EX-HEX 2565 | -9/Exiles | Met EX-BIN 2700 | -9/Exiles | Met EX-DEC 2780 | -9/Exiles | Discovered new exit (range 14) 2801 | -9/Exiles | Entered Mines 2801 | -8/Mines | Discovered new exit (range 11) 2845 | -8/Mines | Entered Materials 2845 | -8/Materials | Evolved 2 slots: Propulsion x1, Utility x1 2863 | -8/Materials | Self-destructed Last Messages --------------- 02827_ K-01 Serf collects debris. 02828_ R-06 Scavenger collects Assault Rifle. 02831_ K-01 Serf collects debris. 02831_ U-05 Engineer builds a Wall. 02832_ Acquired 26 matter. 02832_ R-06 Scavenger collects Wheel. 02835_ K-01 Serf collects debris. 02842_ System corrupted: Component data lost. 02842_ K-01 Serf collects debris. 02843_ R-06 Scavenger collects Seismic Analyzer. PARAMETERS=PROPULSION_1,UTILITY_1 LOCATION=UNKNOWN GOAL=ESCAPE 02855_ Acquired Hardlight Generator. 02856_ O-16 Technician: "IFF HANDSHAKE FAILED. SECURING TERMINAL." 02857_ ALERT: Hostiles spotted, dispatching reinforcements to Terminal M003. 02858_ Connecting with Terminal... 02858_ Current location identified: Materials Map ----- +----------------------------------------------------+ | ????????????????????????????????????? | | ????????????????????????????????????? | | ????????????????????????????????????? | | ????????????????????????????????????? | | ????????????????????????????????????? | | ????????????????????????????????????? | | ????????????????????????????????????? | | ????????????????????????????????????? | | ????????????????????????????????????? | | ????????????????????????????????????? | | ????????????? ??????????????????????? | | ????????????? ??????????????????????? | | ????????????? ??????????????????????? | | ????????????? ??????????????????????? | | ????????????# ??????????????????????? | | ????????????# ??????????????????????? | | ????????????# ??????????????????????? | | ????????????# #?????????????????????? | | ????????????# #?????????????????????? | | ????????????# #?????????????????????? | | ???#####+#??# #?????????????????????? | | ???# ?# #?????????????????????? | | ???# === ?# #####?????????????????? | | ???# == # #?????????????????? | | ???# == # #?????????????????? | | ???# @ T #?????????????????? | | ???# o # #?????????????????? | | ???# "T" # #?????????????????? | | ???# """?## ##?????????????????? | | ???# ??# #??????????????????? | | ???#######???# #??????????????????? | | ?????????????# #??????????????????? | | ?????????????# #??????????????????? | | ?????????????# #??????????????????? | | ?????????????# #??????????????????? | | ?????????????#####??????????????????? | | ????????????????????????????????????? | | ????????????????????????????????????? | | ????????????????????????????????????? | | ????????????????????????????????????? | | ????????????????????????????????????? | | ????????????????????????????????????? | | ????????????????????????????????????? | | ????????????????????????????????????? | | ????????????????????????????????????? | | ????????????????????????????????????? | | ????????????????????????????????????? | | ????????????????????????????????????? | | ????????????????????????????????????? | | ????????????????????????????????????? | +----------------------------------------------------+ Best States ------------- Heat Dissipation 31 Energy Generation 10 Energy Capacity 250 Matter Stores 300 Matter Capacity 300 Sight Range 16 Terrain Scan Range 16 Terrain Scan Density 10 Armor Coverage 150 Evasion (%) 40 Targeting Accuracy 8 Recoil Reduction 2 Offensive Hacking 10 Item Schematics ----------------- Imp. Terrain Scanner | -9/Materials | Scanalyzed Robot Schematics ------------------ None Fabricated ------------ Nothing Alien Tech Used ----------------- None Achievements -------------- Maybe Next Time I'll Detach My Launcher Challenges ------------ None Game ------ Seed PulseBlastDoomcannon Manual? 0 Play Time 00:23:32 Cumulative 25.2 hours Start 2020.09.23 @ 20:48:27 End 2020.09.23 @ 21:12:00 Sessions 1 Manual Loads 0 Difficulty Rogue Special Mode None Game No. 47 Rogue 10 Adventurer 37 Explorer 0 Win Type - Total 1 Types 0/0/0/1/0/0/0/0/0 Lore% 23 Gallery% 34 Achievement% 39 Wizard Run 0 Options --------- ASCII 0 Keyboard 0 Movement Mouse Keybinds 0 Fullscreen 1 Font 20/SmallcapsGlow Map View 66x50 Tactical HUD 1 Map Filters NONE Filters NONE Steam 1 RUN: 1c2aa558-1a7b-4ca1-81b8-34ed55395bd3